[Event "*** SCC Grand Prix: Titled Tuesday Blitz"]
[Site "Chess.com"]
[Date "2020.06.23"]
[Round "8"]
[White "Reader777"]
[Black "pooh2012"]
[Result "1/2-1/2"]
[WhiteElo "2689"]
[BlackElo "2499"]
[TimeControl "180+1"]
[EndTime "11:34:27 PDT"]
[Termination "Game drawn by agreement"]

1. d4 {[%clk 0:03:00.9]} 1... Nf6 {[%clk 0:02:59.5]} 2. c4 {[%clk 0:03:00.7]}
2... e6 {[%clk 0:02:59.3]} 3. g3 {[%clk 0:03:00.9]} 3... d5 {[%clk 0:02:58.9]}
4. Bg2 {[%clk 0:03:01]} 4... dxc4 {[%clk 0:02:59.4]} 5. Nf3 {[%clk 0:03:01]}
5... Bb4+ {[%clk 0:02:59.2]} 6. Nbd2 {[%clk 0:02:54.6]} 6... O-O {[%clk
0:02:56.9]} 7. Qc2 {[%clk 0:02:54.6]} 7... a6 {[%clk 0:02:47.7]} 8. Qxc4 {[%clk
0:02:52.8]} 8... Be7 {[%clk 0:02:42.3]} 9. O-O {[%clk 0:02:47.8]} 9... b5 {[%clk
0:02:41.4]} 10. Qc2 {[%clk 0:02:47.3]} 10... Bb7 {[%clk 0:02:41.1]} 11. Nb3
{[%clk 0:02:46.7]} 11... Be4 {[%clk 0:02:38.4]} 12. Qd1 {[%clk 0:02:45.5]} 12...
Nbd7 {[%clk 0:02:35.4]} 13. Bd2 {[%clk 0:02:35.1]} 13... c5 {[%clk 0:02:25.6]}
14. dxc5 {[%clk 0:02:24.4]} 14... Nxc5 {[%clk 0:02:25]} 15. Bc3 {[%clk
0:02:18.3]} 15... Qxd1 {[%clk 0:02:20.6]} 16. Rfxd1 {[%clk 0:02:17.9]} 16...
Nxb3 {[%clk 0:02:20.5]} 17. axb3 {[%clk 0:02:17.4]} 17... Nd5 {[%clk 0:01:31.3]}
18. Ba5 {[%clk 0:01:49.5]} 18... Rfc8 {[%clk 0:01:07.2]} 19. Rdc1 {[%clk
0:01:47.8]} 19... Bf6 {[%clk 0:01:05.2]} 20. Rxc8+ {[%clk 0:01:37.2]} 20... Rxc8
{[%clk 0:01:04.1]} 21. Be1 {[%clk 0:01:24.3]} 21... Rc6 {[%clk 0:00:52.1]} 22.
Nd4 {[%clk 0:01:14.6]} 22... Bxd4 {[%clk 0:00:49]} 23. Bxe4 {[%clk 0:01:14.6]}
23... Bxb2 {[%clk 0:00:49.5]} 24. Rd1 {[%clk 0:01:11.8]} 24... Rc1 {[%clk
0:00:46.6]} 25. Rxc1 {[%clk 0:01:10.6]} 25... Bxc1 {[%clk 0:00:47.5]} 26. Ba5
{[%clk 0:01:05.7]} 26... f5 {[%clk 0:00:45.1]} 27. Bd3 {[%clk 0:01:02.1]} 27...
Ba3 {[%clk 0:00:44.8]} 28. e4 {[%clk 0:01:01]} 28... fxe4 {[%clk 0:00:42.7]} 29.
Bxe4 {[%clk 0:01:01.6]} 29... Kf7 {[%clk 0:00:42.3]} 30. Kf1 {[%clk 0:01:00.9]}
30... g6 {[%clk 0:00:37.4]} 31. Ke2 {[%clk 0:01:00.9]} 31... Ke7 {[%clk
0:00:36.9]} 32. h4 {[%clk 0:00:59.9]} 32... Bb4 {[%clk 0:00:30.6]} 33. Bxd5
{[%clk 0:00:56.6]} 33... Bxa5 {[%clk 0:00:30]} 34. Bb7 {[%clk 0:00:57.1]} 34...
Bb6 {[%clk 0:00:27]} 35. Bxa6 {[%clk 0:00:57.4]} 35... b4 {[%clk 0:00:27.9]} 36.
Bc4 {[%clk 0:00:57.1]} 36... Bc5 {[%clk 0:00:28.1]} 37. f3 {[%clk 0:00:56.8]}
37... Kf6 {[%clk 0:00:28.6]} 38. g4 {[%clk 0:00:56]} 38... h6 {[%clk 0:00:27.5]}
39. Bd3 {[%clk 0:00:53.6]} 39... g5 {[%clk 0:00:27.3]} 1/2-1/2

[Event "*** SCC Grand Prix: Titled Tuesday Blitz"]
[Site "Chess.com"]
[Date "2020.06.23"]
[Round "8"]
[White "Fandorine"]
[Black "exoticprincess"]
[Result "1-0"]
[WhiteElo "2900"]
[BlackElo "2792"]
[TimeControl "180+1"]
[EndTime "11:34:29 PDT"]
[Termination "Fandorine won by resignation"]

1. e4 {[%clk 0:02:52.3]} 1... c6 {[%clk 0:02:56.7]} 2. d4 {[%clk 0:02:47.6]}
2... d5 {[%clk 0:02:56.8]} 3. e5 {[%clk 0:02:47.4]} 3... Bf5 {[%clk 0:02:56.4]}
4. h4 {[%clk 0:02:47.7]} 4... Na6 {[%clk 0:02:53.9]} 5. c3 {[%clk 0:02:44.6]}
5... Nc7 {[%clk 0:02:53]} 6. h5 {[%clk 0:02:36.3]} 6... e6 {[%clk 0:02:52.8]} 7.
Be3 {[%clk 0:02:35.2]} 7... h6 {[%clk 0:02:50.5]} 8. Nd2 {[%clk 0:02:35.3]} 8...
Ne7 {[%clk 0:02:50.4]} 9. g4 {[%clk 0:02:35.2]} 9... Bh7 {[%clk 0:02:50.5]} 10.
f4 {[%clk 0:02:35.8]} 10... Nc8 {[%clk 0:02:48.6]} 11. Ngf3 {[%clk 0:02:33.4]}
11... Be7 {[%clk 0:02:48.9]} 12. Bh3 {[%clk 0:02:32.9]} 12... Nb6 {[%clk
0:02:48]} 13. O-O {[%clk 0:02:32.2]} 13... Nc4 {[%clk 0:02:40.4]} 14. Nxc4
{[%clk 0:02:26.5]} 14... dxc4 {[%clk 0:02:40.6]} 15. f5 {[%clk 0:02:27.1]} 15...
Nd5 {[%clk 0:02:40.1]} 16. Bd2 {[%clk 0:02:22.8]} 16... Qd7 {[%clk 0:02:37.9]}
17. Ne1 {[%clk 0:02:17.4]} 17... O-O-O {[%clk 0:02:35.9]} 18. Ng2 {[%clk
0:02:17.8]} 18... Kb8 {[%clk 0:02:23]} 19. Qe2 {[%clk 0:02:13.2]} 19... c5
{[%clk 0:02:18.1]} 20. Rad1 {[%clk 0:02:01.4]} 20... cxd4 {[%clk 0:02:17.4]} 21.
cxd4 {[%clk 0:02:02.3]} 21... Qb5 {[%clk 0:02:04.4]} 22. Bc3 {[%clk 0:01:54.2]}
22... Qc6 {[%clk 0:02:01.1]} 23. Nf4 {[%clk 0:01:44.5]} 23... Nxf4 {[%clk
0:01:32.4]} 24. Rxf4 {[%clk 0:01:45.4]} 24... Bg5 {[%clk 0:01:32.1]} 25. Bg2
{[%clk 0:01:30.9]} 25... Qa6 {[%clk 0:01:31.5]} 26. Rff1 {[%clk 0:01:27.8]}
26... Rd7 {[%clk 0:01:29.3]} 27. d5 {[%clk 0:01:01.9]} 27... exd5 {[%clk
0:01:29.4]} 28. Rxd5 {[%clk 0:01:00.4]} 28... Rhd8 {[%clk 0:01:22.6]} 29. Rfd1
{[%clk 0:00:58.3]} 29... Rxd5 {[%clk 0:01:21.3]} 30. Rxd5 {[%clk 0:00:59.2]}
30... Qb6+ {[%clk 0:01:16.6]} 31. Kf1 {[%clk 0:00:46.6]} 31... Bh4 {[%clk
0:00:54.5]} 32. Ba5 {[%clk 0:00:40]} 1-0

[Event "*** SCC Grand Prix: Titled Tuesday Blitz"]
[Site "Chess.com"]
[Date "2020.06.23"]
[Round "8"]
[White "rasmussvane"]
[Black "LionTheLeon_06"]
[Result "1-0"]
[WhiteElo "2886"]
[BlackElo "2697"]
[TimeControl "180+1"]
[EndTime "11:34:30 PDT"]
[Termination "rasmussvane won by resignation"]

1. Nf3 {[%clk 0:03:00.9]} 1... Nf6 {[%clk 0:02:59.3]} 2. g3 {[%clk 0:02:58.5]}
2... d5 {[%clk 0:02:58.3]} 3. Bg2 {[%clk 0:02:58.8]} 3... e6 {[%clk 0:02:59]} 4.
O-O {[%clk 0:02:59.3]} 4... Be7 {[%clk 0:02:59.4]} 5. c4 {[%clk 0:02:59.8]} 5...
O-O {[%clk 0:02:59.2]} 6. b3 {[%clk 0:03:00]} 6... b6 {[%clk 0:02:58.8]} 7. d4
{[%clk 0:02:58.8]} 7... Bb7 {[%clk 0:02:54.3]} 8. Nc3 {[%clk 0:02:58]} 8... dxc4
{[%clk 0:02:51.2]} 9. bxc4 {[%clk 0:02:57]} 9... c5 {[%clk 0:02:51.9]} 10. d5
{[%clk 0:02:56.3]} 10... exd5 {[%clk 0:02:19.8]} 11. Nh4 {[%clk 0:02:39.3]}
11... Ne4 {[%clk 0:01:40.3]} 12. Nxd5 {[%clk 0:02:38]} 12... Bxd5 {[%clk
0:01:35.3]} 13. cxd5 {[%clk 0:02:06.1]} 13... Bf6 {[%clk 0:01:13.2]} 14. Bxe4
{[%clk 0:02:06.1]} 14... Bxa1 {[%clk 0:01:13.1]} 15. d6 {[%clk 0:02:06.4]} 15...
Nd7 {[%clk 0:01:13.3]} 16. Bxa8 {[%clk 0:02:02.5]} 16... Qxa8 {[%clk 0:01:13.2]}
17. Qa4 {[%clk 0:01:59.6]} 17... Qb7 {[%clk 0:00:50.1]} 18. Nf5 {[%clk
0:01:57.8]} 18... Bf6 {[%clk 0:00:47.4]} 19. Rd1 {[%clk 0:01:50.3]} 19... Re8
{[%clk 0:00:43.7]} 20. Be3 {[%clk 0:01:32.7]} 20... g6 {[%clk 0:00:34.5]} 21.
Nh6+ {[%clk 0:01:24.8]} 21... Kg7 {[%clk 0:00:33.6]} 22. Qc4 {[%clk 0:01:04.8]}
22... Ne5 {[%clk 0:00:31.3]} 23. Qf4 {[%clk 0:00:49.4]} 23... Nd7 {[%clk
0:00:25.4]} 24. a4 {[%clk 0:00:44.7]} 24... Qe4 {[%clk 0:00:22.4]} 25. Ng4
{[%clk 0:00:38.4]} 25... Qxf4 {[%clk 0:00:19.8]} 26. Bxf4 {[%clk 0:00:39.3]}
26... Re4 {[%clk 0:00:18.7]} 27. Bh6+ {[%clk 0:00:38.3]} 27... Kg8 {[%clk
0:00:16.2]} 28. Nxf6+ {[%clk 0:00:38.7]} 28... Nxf6 {[%clk 0:00:15.1]} 29. d7
{[%clk 0:00:39.6]} 1-0

[Event "*** SCC Grand Prix: Titled Tuesday Blitz"]
[Site "Chess.com"]
[Date "2020.06.23"]
[Round "8"]
[White "enzovsky"]
[Black "Iljushin_Alexey"]
[Result "1-0"]
[WhiteElo "2383"]
[BlackElo "2706"]
[TimeControl "180+1"]
[EndTime "11:34:30 PDT"]
[Termination "enzovsky won by resignation"]

1. e4 {[%clk 0:03:00.9]} 1... c6 {[%clk 0:02:59.8]} 2. d4 {[%clk 0:03:00.4]}
2... d5 {[%clk 0:03:00]} 3. e5 {[%clk 0:03:01.3]} 3... Bf5 {[%clk 0:02:59.7]} 4.
h4 {[%clk 0:03:01.2]} 4... h5 {[%clk 0:02:59.1]} 5. Bd3 {[%clk 0:03:01.7]} 5...
Bxd3 {[%clk 0:02:58.5]} 6. Qxd3 {[%clk 0:03:02.6]} 6... e6 {[%clk 0:02:58.9]} 7.
Bg5 {[%clk 0:03:03.2]} 7... Qa5+ {[%clk 0:02:59.2]} 8. Nd2 {[%clk 0:03:03.2]}
8... Qa6 {[%clk 0:02:59.6]} 9. c4 {[%clk 0:03:02.9]} 9... Nd7 {[%clk 0:02:58.1]}
10. Ne2 {[%clk 0:03:03.1]} 10... Ne7 {[%clk 0:02:56.1]} 11. O-O {[%clk
0:03:02.3]} 11... Nf5 {[%clk 0:02:53.6]} 12. Ng3 {[%clk 0:03:02.8]} 12... g6
{[%clk 0:02:52.7]} 13. Nxf5 {[%clk 0:02:57]} 13... gxf5 {[%clk 0:02:52.3]} 14.
Qc2 {[%clk 0:02:57.6]} 14... Bb4 {[%clk 0:02:48.7]} 15. cxd5 {[%clk 0:02:52.3]}
15... cxd5 {[%clk 0:02:45.7]} 16. a3 {[%clk 0:02:52.4]} 16... Bxd2 {[%clk
0:02:42.8]} 17. Qxd2 {[%clk 0:02:53.3]} 17... Rc8 {[%clk 0:02:41.1]} 18. b4
{[%clk 0:02:49.5]} 18... Rg8 {[%clk 0:02:24.6]} 19. Rfc1 {[%clk 0:02:45.4]}
19... Rc4 {[%clk 0:02:18.3]} 20. Rab1 {[%clk 0:02:41.6]} 20... b5 {[%clk
0:02:16.3]} 21. Qe2 {[%clk 0:02:39.3]} 21... Rh8 {[%clk 0:02:13.9]} 22. Bf6
{[%clk 0:02:36]} 22... Rh6 {[%clk 0:02:07.9]} 23. Qe3 {[%clk 0:02:31.7]} 23...
Rg6 {[%clk 0:02:07.3]} 24. g3 {[%clk 0:02:26.8]} 24... Nxf6 {[%clk 0:01:58.4]}
25. exf6 {[%clk 0:02:27.7]} 25... Rxf6 {[%clk 0:01:58.4]} 26. a4 {[%clk
0:02:26.8]} 26... Rg6 {[%clk 0:01:49.7]} 27. Ra1 {[%clk 0:02:23.3]} 27... bxa4
{[%clk 0:01:45.4]} 28. b5 {[%clk 0:02:24.1]} 28... Qxb5 {[%clk 0:01:35.4]} 29.
Rab1 {[%clk 0:02:23.7]} 29... Rb4 {[%clk 0:01:09.1]} 30. Rxb4 {[%clk 0:02:06]}
30... Qxb4 {[%clk 0:01:08.9]} 31. Qe5 {[%clk 0:02:06.5]} 31... Qb7 {[%clk
0:01:00.1]} 32. Qd6 {[%clk 0:02:02.7]} 32... e5 {[%clk 0:00:56.1]} 33. Qxe5+
{[%clk 0:01:59.4]} 33... Re6 {[%clk 0:00:56.3]} 34. Qxf5 {[%clk 0:01:59.7]}
34... a3 {[%clk 0:00:55]} 35. Rb1 {[%clk 0:01:56.6]} 35... Rb6 {[%clk
0:00:49.7]} 36. Ra1 {[%clk 0:01:56.5]} 36... Rb3 {[%clk 0:00:42.5]} 37. Kh2
{[%clk 0:01:50.8]} 37... Kf8 {[%clk 0:00:38.1]} 38. Qxh5 {[%clk 0:01:48.8]}
38... Qb4 {[%clk 0:00:38]} 39. Qxd5 {[%clk 0:01:43.8]} 39... Rb2 {[%clk
0:00:35]} 40. Qd8+ {[%clk 0:01:40.2]} 40... Kg7 {[%clk 0:00:34.7]} 41. Qg5+
{[%clk 0:01:40.7]} 41... Kf8 {[%clk 0:00:32.4]} 42. Qf6 {[%clk 0:01:34.1]} 42...
a2 {[%clk 0:00:27.4]} 43. Rc1 {[%clk 0:01:32.1]} 43... Qb7 {[%clk 0:00:25.9]}
44. Qh8+ {[%clk 0:01:28.8]} 44... Ke7 {[%clk 0:00:25.7]} 45. Re1+ {[%clk
0:01:29.4]} 45... Kd7 {[%clk 0:00:24.8]} 46. Qe8+ {[%clk 0:01:25.3]} 46... Kd6
{[%clk 0:00:24.7]} 47. Qe5+ {[%clk 0:01:20.8]} 47... Kc6 {[%clk 0:00:25]} 48.
Qc5+ {[%clk 0:01:18.4]} 1-0

[Event "*** SCC Grand Prix: Titled Tuesday Blitz"]
[Site "Chess.com"]
[Date "2020.06.23"]
[Round "8"]
[White "AlexOstrovskiy"]
[Black "IMHansNiemann"]
[Result "0-1"]
[WhiteElo "2710"]
[BlackElo "2962"]
[TimeControl "180+1"]
[EndTime "11:34:33 PDT"]
[Termination "IMHansNiemann won on time"]

1. d4 {[%clk 0:03:00.9]} 1... d5 {[%clk 0:02:56.4]} 2. Bf4 {[%clk 0:03:00.5]}
2... c5 {[%clk 0:02:53.5]} 3. e3 {[%clk 0:03:00.1]} 3... Nc6 {[%clk 0:02:53.6]}
4. c3 {[%clk 0:03:00]} 4... Nf6 {[%clk 0:02:53.3]} 5. Nd2 {[%clk 0:02:59.7]}
5... Qb6 {[%clk 0:02:48.5]} 6. Qc2 {[%clk 0:02:54.2]} 6... Nh5 {[%clk
0:02:43.7]} 7. Bg5 {[%clk 0:02:33]} 7... h6 {[%clk 0:02:31.7]} 8. Bh4 {[%clk
0:02:32.9]} 8... g6 {[%clk 0:02:32.1]} 9. h3 {[%clk 0:02:13.7]} 9... Bg7 {[%clk
0:02:23.1]} 10. Ngf3 {[%clk 0:02:05.7]} 10... O-O {[%clk 0:02:20.3]} 11. Bd3
{[%clk 0:01:35.6]} 11... cxd4 {[%clk 0:02:18]} 12. exd4 {[%clk 0:01:25.6]} 12...
Nf4 {[%clk 0:02:16.6]} 13. O-O {[%clk 0:01:25.7]} 13... Nxd3 {[%clk 0:02:14.1]}
14. Qxd3 {[%clk 0:01:26.6]} 14... Bf5 {[%clk 0:02:13.7]} 15. Qe3 {[%clk
0:01:26.8]} 15... Qxb2 {[%clk 0:02:11.6]} 16. Nb3 {[%clk 0:01:14.5]} 16... Rfe8
{[%clk 0:02:01.3]} 17. Ne5 {[%clk 0:01:00.1]} 17... Rac8 {[%clk 0:01:51.1]} 18.
Rfc1 {[%clk 0:00:45.8]} 18... Qa3 {[%clk 0:01:45.3]} 19. g4 {[%clk 0:00:41.2]}
19... Nxe5 {[%clk 0:01:34.2]} 20. dxe5 {[%clk 0:00:39.8]} 20... Bd7 {[%clk
0:01:32]} 21. Nd4 {[%clk 0:00:29.5]} 21... e6 {[%clk 0:01:29.1]} 22. Bf6 {[%clk
0:00:26.1]} 22... Rc4 {[%clk 0:01:09.8]} 23. Rab1 {[%clk 0:00:22.8]} 23... b6
{[%clk 0:01:08.7]} 24. Qf4 {[%clk 0:00:11.8]} 24... Qf8 {[%clk 0:01:02.7]} 25.
h4 {[%clk 0:00:08.2]} 25... Rec8 {[%clk 0:01:01.2]} 26. Rb3 {[%clk 0:00:08]}
26... Ba4 {[%clk 0:00:59.6]} 27. Rb2 {[%clk 0:00:07.2]} 27... Rxc3 {[%clk
0:00:55]} 28. Rxc3 {[%clk 0:00:07.3]} 28... Rxc3 {[%clk 0:00:55.5]} 29. Nf3
{[%clk 0:00:05.2]} 29... Rc4 {[%clk 0:00:54.5]} 30. Qg3 {[%clk 0:00:04.1]} 30...
Bc2 {[%clk 0:00:52]} 31. h5 {[%clk 0:00:01.3]} 31... Be4 {[%clk 0:00:47.7]} 0-1

[Event "*** SCC Grand Prix: Titled Tuesday Blitz"]
[Site "Chess.com"]
[Date "2020.06.23"]
[Round "8"]
[White "silverback96"]
[Black "ajian"]
[Result "0-1"]
[WhiteElo "2273"]
[BlackElo "2397"]
[TimeControl "180+1"]
[EndTime "11:34:35 PDT"]
[Termination "ajian won by resignation"]

1. Nf3 {[%clk 0:02:12]} 1... Nf6 {[%clk 0:02:59.9]} 2. c4 {[%clk 0:02:10.4]}
2... e6 {[%clk 0:03:00.1]} 3. b3 {[%clk 0:02:08.7]} 3... d5 {[%clk 0:02:57]} 4.
Bb2 {[%clk 0:02:08.9]} 4... c5 {[%clk 0:02:56.9]} 5. e3 {[%clk 0:02:08.7]} 5...
Nc6 {[%clk 0:02:56.8]} 6. cxd5 {[%clk 0:01:56.9]} 6... exd5 {[%clk 0:02:56.7]}
7. Bb5 {[%clk 0:01:57.8]} 7... Bg4 {[%clk 0:02:50.6]} 8. d4 {[%clk 0:01:56.3]}
8... cxd4 {[%clk 0:02:44.6]} 9. Qxd4 {[%clk 0:01:55.6]} 9... Be7 {[%clk
0:02:30.9]} 10. h3 {[%clk 0:01:52.5]} 10... Bh5 {[%clk 0:02:19.9]} 11. g4 {[%clk
0:01:52.2]} 11... Bg6 {[%clk 0:02:20]} 12. h4 {[%clk 0:01:47.6]} 12... Bxb1
{[%clk 0:02:11.3]} 13. Bxc6+ {[%clk 0:01:41.9]} 13... bxc6 {[%clk 0:02:12.2]}
14. Rxb1 {[%clk 0:01:42.6]} 14... O-O {[%clk 0:01:50.8]} 15. h5 {[%clk
0:01:42.5]} 15... Ne8 {[%clk 0:01:43.6]} 16. h6 {[%clk 0:01:21.6]} 16... Bf6
{[%clk 0:01:42.8]} 17. Qd3 {[%clk 0:01:21.4]} 17... g6 {[%clk 0:01:30.3]} 18. g5
{[%clk 0:01:17.4]} 18... Bxb2 {[%clk 0:01:26]} 19. Rxb2 {[%clk 0:01:17.1]} 19...
f6 {[%clk 0:01:18.1]} 20. Nh4 {[%clk 0:01:11.2]} 20... Qe7 {[%clk 0:00:52]} 21.
gxf6 {[%clk 0:00:56.9]} 21... Qxf6 {[%clk 0:00:51.5]} 22. f4 {[%clk 0:00:44.7]}
22... Qxb2 {[%clk 0:00:49.1]} 23. Nxg6 {[%clk 0:00:39.3]} 23... hxg6 {[%clk
0:00:40.5]} 24. Qxg6+ {[%clk 0:00:40.2]} 24... Kh8 {[%clk 0:00:40.5]} 25. Rg1
{[%clk 0:00:40.2]} 25... Qf6 {[%clk 0:00:33.4]} 26. Qg5 {[%clk 0:00:29.8]} 26...
Qxg5 {[%clk 0:00:32.6]} 27. fxg5 {[%clk 0:00:30.7]} 27... Kh7 {[%clk 0:00:25.9]}
28. g6+ {[%clk 0:00:27.9]} 28... Kxh6 {[%clk 0:00:25.3]} 29. g7 {[%clk
0:00:28.8]} 29... Nxg7 {[%clk 0:00:25]} 30. Rh1+ {[%clk 0:00:28.6]} 30... Nh5
{[%clk 0:00:25.2]} 31. Rg1 {[%clk 0:00:29.5]} 31... Rg8 {[%clk 0:00:24.9]} 0-1

[Event "*** SCC Grand Prix: Titled Tuesday Blitz"]
[Site "Chess.com"]
[Date "2020.06.23"]
[Round "8"]
[White "argentum049"]
[Black "akashcheck"]
[Result "1-0"]
[WhiteElo "2406"]
[BlackElo "2222"]
[TimeControl "180+1"]
[EndTime "11:34:35 PDT"]
[Termination "argentum049 won on time"]

1. d4 {[%clk 0:03:00.9]} 1... d5 {[%clk 0:03:00.1]} 2. c4 {[%clk 0:02:59.5]}
2... e6 {[%clk 0:03:00.3]} 3. Nf3 {[%clk 0:02:59.8]} 3... a6 {[%clk 0:02:59.4]}
4. cxd5 {[%clk 0:02:58.9]} 4... exd5 {[%clk 0:03:00.3]} 5. Bf4 {[%clk
0:02:56.4]} 5... Bd6 {[%clk 0:02:55.9]} 6. Bg3 {[%clk 0:02:55.5]} 6... Ne7
{[%clk 0:02:49.2]} 7. Qc2 {[%clk 0:02:55.5]} 7... c6 {[%clk 0:02:43.2]} 8. e3
{[%clk 0:02:55.4]} 8... Bf5 {[%clk 0:02:42.8]} 9. Bd3 {[%clk 0:02:55.1]} 9...
Bxd3 {[%clk 0:02:42.4]} 10. Qxd3 {[%clk 0:02:55.2]} 10... O-O {[%clk 0:02:42.3]}
11. Ne5 {[%clk 0:02:54.5]} 11... Ng6 {[%clk 0:02:36.6]} 12. O-O {[%clk
0:02:52.8]} 12... Qe7 {[%clk 0:02:30]} 13. Qc3 {[%clk 0:02:38.7]} 13... Nxe5
{[%clk 0:02:09.8]} 14. dxe5 {[%clk 0:02:36.3]} 14... Bc7 {[%clk 0:02:10]} 15.
Nd2 {[%clk 0:02:35.7]} 15... Nd7 {[%clk 0:02:08.2]} 16. f4 {[%clk 0:02:28.3]}
16... f6 {[%clk 0:02:02.5]} 17. Bh4 {[%clk 0:02:10.9]} 17... Qe8 {[%clk
0:02:01.1]} 18. exf6 {[%clk 0:02:10.1]} 18... Nxf6 {[%clk 0:02:00]} 19. Nf3
{[%clk 0:02:08.1]} 19... Ng4 {[%clk 0:01:45.9]} 20. Rae1 {[%clk 0:02:06.2]}
20... Bb6 {[%clk 0:01:44.2]} 21. Kh1 {[%clk 0:01:50.8]} 21... Qe4 {[%clk
0:00:38]} 22. Qb3 {[%clk 0:01:43.3]} 22... Ba7 {[%clk 0:00:21.9]} 23. Ng5 {[%clk
0:01:36.2]} 23... Qe7 {[%clk 0:00:16.8]} 24. e4 {[%clk 0:01:35.1]} 24... h6
{[%clk 0:00:10.4]} 25. Nf3 {[%clk 0:01:33.6]} 25... Qf7 {[%clk 0:00:09.6]} 26.
exd5 {[%clk 0:01:23.8]} 26... cxd5 {[%clk 0:00:09.9]} 27. h3 {[%clk 0:01:22.7]}
27... Nf6 {[%clk 0:00:07.2]} 28. Ne5 {[%clk 0:01:21.8]} 28... Qc7 {[%clk
0:00:06.2]} 29. Bxf6 {[%clk 0:01:20.1]} 29... Rxf6 {[%clk 0:00:05.5]} 30. Qxd5+
{[%clk 0:01:21]} 30... Kh8 {[%clk 0:00:04.2]} 31. Rc1 {[%clk 0:01:17.5]} 31...
Qe7 {[%clk 0:00:03.5]} 32. Qe4 {[%clk 0:01:09.1]} 32... Qe8 {[%clk 0:00:03.6]}
33. Rc7 {[%clk 0:01:07.1]} 33... Rd8 {[%clk 0:00:02.7]} 34. Nf7+ {[%clk
0:01:05.3]} 1-0

[Event "*** SCC Grand Prix: Titled Tuesday Blitz"]
[Site "Chess.com"]
[Date "2020.06.23"]
[Round "8"]
[White "picturesquecheck"]
[Black "Thipsay"]
[Result "0-1"]
[WhiteElo "2119"]
[BlackElo "2482"]
[TimeControl "180+1"]
[EndTime "11:34:36 PDT"]
[Termination "Thipsay won by resignation"]

1. e4 {[%clk 0:03:00.9]} 1... e5 {[%clk 0:03:00]} 2. Nf3 {[%clk 0:02:59.5]} 2...
Nc6 {[%clk 0:03:00]} 3. Bb5 {[%clk 0:02:59.5]} 3... a6 {[%clk 0:02:59.4]} 4. Ba4
{[%clk 0:02:59.2]} 4... Nf6 {[%clk 0:02:59.3]} 5. O-O {[%clk 0:02:58]} 5... Be7
{[%clk 0:02:59.3]} 6. Re1 {[%clk 0:02:53.7]} 6... b5 {[%clk 0:02:59.3]} 7. Bb3
{[%clk 0:02:53.7]} 7... O-O {[%clk 0:02:59.2]} 8. a4 {[%clk 0:02:54]} 8... Rb8
{[%clk 0:02:57.7]} 9. axb5 {[%clk 0:02:53.6]} 9... axb5 {[%clk 0:02:57.2]} 10.
d4 {[%clk 0:02:54.2]} 10... exd4 {[%clk 0:02:49.8]} 11. Nxd4 {[%clk 0:02:53.8]}
11... Nxd4 {[%clk 0:02:48.3]} 12. Qxd4 {[%clk 0:02:53.4]} 12... c5 {[%clk
0:02:47.8]} 13. Qd1 {[%clk 0:02:53.5]} 13... c4 {[%clk 0:02:47.3]} 14. Ba2
{[%clk 0:02:53]} 14... Bb7 {[%clk 0:02:45]} 15. Nc3 {[%clk 0:02:51.8]} 15... b4
{[%clk 0:02:42.2]} 16. Nd5 {[%clk 0:02:51.8]} 16... Nxd5 {[%clk 0:02:41.4]} 17.
exd5 {[%clk 0:02:52]} 17... Rc8 {[%clk 0:02:41.3]} 18. c3 {[%clk 0:02:37.5]}
18... b3 {[%clk 0:02:36.4]} 19. Bb1 {[%clk 0:02:37.2]} 19... Bf6 {[%clk
0:02:35.1]} 20. Be3 {[%clk 0:02:25.2]} 20... d6 {[%clk 0:02:30.6]} 21. Ra7
{[%clk 0:02:24.6]} 21... Qd7 {[%clk 0:02:26.3]} 22. Qh5 {[%clk 0:02:16.4]} 22...
g6 {[%clk 0:02:25.2]} 23. Qf3 {[%clk 0:02:15.5]} 23... Bg7 {[%clk 0:02:21.8]}
24. h4 {[%clk 0:01:50.4]} 24... Qb5 {[%clk 0:02:19.1]} 25. Rd1 {[%clk
0:01:43.7]} 25... Ra8 {[%clk 0:02:18.7]} 26. Rxa8 {[%clk 0:01:40.3]} 26... Rxa8
{[%clk 0:02:18.3]} 27. Be4 {[%clk 0:01:32.7]} 27... f5 {[%clk 0:02:14]} 28. Bb1
{[%clk 0:01:23.4]} 28... Ra1 {[%clk 0:02:13.3]} 29. g4 {[%clk 0:01:19.6]} 29...
fxg4 {[%clk 0:01:07.8]} 30. Qxg4 {[%clk 0:01:19.2]} 30... Bxd5 {[%clk
0:00:59.8]} 31. Qc8+ {[%clk 0:01:17.8]} 31... Bf8 {[%clk 0:00:59.5]} 32. Bh6
{[%clk 0:01:13.7]} 32... Ra8 {[%clk 0:00:58.9]} 33. Qc7 {[%clk 0:00:52.6]} 33...
Bxh6 {[%clk 0:00:56]} 34. Qxd6 {[%clk 0:00:52.4]} 34... Bf7 {[%clk 0:00:54]} 35.
Be4 {[%clk 0:00:47.2]} 35... Rf8 {[%clk 0:00:51.5]} 36. Qf6 {[%clk 0:00:30.9]}
36... Qh5 {[%clk 0:00:49.6]} 37. Rd7 {[%clk 0:00:23.1]} 37... Qg4+ {[%clk
0:00:48.6]} 0-1